Cogmind - Beta 16 @@@ ROGUE MODE // 2025.10.24 @ 15:06:58 Player: Uranium-235 Result: Destroyed by D-53 Grenadier with Mini Grenade Launcher Performance ------------- Evolutions (0) 0 Regions Visited (2) 400 Robots Destroyed (28) 140 Value Destroyed (528) 528 Prototype IDs (2) 40 Alien Tech Used (0) 0 Bonus (-44) -44 TOTAL SCORE: 1064 Bonus ------- Friendly Fire -44 Cogmind --------- Core Integrity 0/250 Matter 300/300 Energy 100/100 System Corruption 0% Temperature Cool (0) Movement Core (50) Location -10/Mines Parts ------- > --- POWER (1) -------- (None) > --- PROPULSION (2) --- (None) > --- UTILITY (2) ------ (None) > --- WEAPON (2) ------- (None) > --- INVENTORY (5) ---- Hover Unit Flight Unit Improved Heat Sink Hacking Suite Heavy Assault Rifle Peak State ------------ > --- POWER ------------ Light Nuclear Core > --- PROPULSION ------- Light Treads Compact Wheel > --- UTILITY ---------- Small Storage Unit Visual Processing Unit > --- WEAPON ----------- Heavy Assault Rifle Light Cannon > --- INVENTORY -------- Light Nuclear Core Hover Unit Improved Heat Sink Hacking Suite Heavy Assault Rifle Heavy Assault Rifle Grenade Launcher [Rating: 12] Favorites ----------- Power Ion Engine Engine Ion Engine Power Core Light Nuclear Core Propulsion Light Treads Treads Light Treads Wheel Compact Wheel Utility Small Storage Unit Device Seismic Detector Storage Small Storage Unit Processor Visual Processing Unit Weapon Heavy Assault Rifle Energy Gun EM Pulse Gun Ballistic Gun Heavy Assault Rifle Ballistic Cannon Light Cannon Launcher Grenade Launcher Build | -11 -10 -10 ------- Run | Yrd Mat Min Slots Evolved . | . . . Power . | . . . Propulsion . | . . . Utility . | . . . Weapon . | . . . Parts Attached 17 | 7 5 5 Power 3 | 1 1 1 Engine 2 | 1 1 . Core 1 | . . 1 Reactor . | . . . Propulsion 3 | 2 . 1 Treads 2 | 2 . . Leg . | . . . Wheel 1 | . . 1 Hover . | . . . Flight . | . . . Utility 3 | 2 1 . Device 1 | 1 . . Storage 1 | 1 . . Processor 1 | . 1 . Hackware . | . . . Protection . | . . . Artifact . | . . . Weapon 8 | 2 3 3 Energy Gun 2 | 2 . . Energy Cannon . | . . . Ballistic Gun 4 | . 2 2 Ballistic Cannon 1 | . 1 . Launcher 1 | . . 1 Special Weapon . | . . . Impact Weapon . | . . . Slashing Weapon . | . . . Piercing Weapon . | . . . Special Melee Weapon . | . . . Unidentified Prototypes . | . . . Parts Lost 9 | . 1 8 Power 2 | . . 2 Propulsion 3 | . . 3 Utility . | . . . Weapon 4 | . 1 3 Highest Loss Streak 6 | . 1 6 To Critical Strikes . | . . . Average Backups 7 | 4 7 7 Power . | . 1 . Propulsion 2 | 3 2 1 Utility 1 | . 1 2 Weapon 2 | . 2 2 Tool/Special . | . . . Unused Backups 14 | . 8 6 Power 2 | . 1 1 Propulsion 7 | . 4 3 Utility 4 | . 2 2 Weapon 1 | . 1 . Tool/Special . | . . . Average Slot Usage (%) 97 | . 100 88 Engine 12 | . 14 7 Core 1 | . . 4 Treads 26 | . 28 19 Storage 13 | . 14 13 Processor 12 | . 12 13 Energy Gun 6 | . 8 . Ballistic Gun 14 | . 14 12 Ballistic Cannon 7 | . 5 12 Peak Build Rating 12 | 7 11 12 Average Rating 9 | 5 9 9 On Entrance 5 | . 7 10 Avg Prop Armor Cover (%) 11 | . . 11 Naked Turns 16 | . . 16 Heaviest Build 16 | 15 16 16 Greatest Support 40 | 40 40 40 Greatest Overweight (x) 3 | 3 . . Average Overweight (x) . | . . . Largest Inventory Capacity 8 | 8 8 8 Average Capacity 7 | 7 8 7 Most Carried 8 | 7 8 8 Average Carried 7 | 5 7 7 Final Capacity 8 | 8 8 5 Final Carried 8 | 7 8 5 Class Distribution -------------------- 100% | Mutant Dominant Class ---------------- Mutant | -10/Materials Mutant | -10/Mines Resources | -11 -10 -10 ----------- Run | Yrd Mat Min Matter Collected 655 | 270 216 169 Remotely . | . . . Salvage Created 808 | 148 450 210 Parts 53 | 4 32 17 Haulers Intercepted . | . . . Recyclers Shooed 2 | 1 . 1 Parts Field Recycled . | . . . Retrieved Matter . | . . . Parts Self-Destructed . | . . . Prevented . | . . . Parts Restored . | . . . Kills | -11 -10 -10 ------- Run | Yrd Mat Min Combat Hostiles Destroyed 15 | . 10 5 Guns 11 | . 7 4 Cannons 3 | . 2 1 AOE 1 | . 1 . Classes Destroyed 8 | 2 6 . Worker 3 | . 2 1 Builder 2 | . 2 . Tunneler 2 | 2 . . Recycler 3 | 1 1 1 Operator 1 | . 1 . Watcher 2 | . 2 . Swarmer 6 | . 3 3 Grunt 9 | . 7 2 Best Kill Streak 6 | 2 6 3 Combat Bots Only 6 | . 6 3 Max Kills in Single Turn 4 | 1 4 1 Gunslinging . | . . . Exploded 1 | . 1 . Melee . | . . . Uniques/NPCs Destroyed . | . . . Combat | -11 -10 -10 -------- Run | Yrd Mat Min Hostile Shots Fired 101 | . 53 48 Missed 25 | . 13 12 Hits 76 | . 40 36 Projectile 76 | . 40 36 AOE 16 | . . 16 Damage Taken 1245 | . 434 811 Core 258 | . 94 164 Absorbed by Shields . | . . . Core Remaining (%) 100 | 100 . . Volleys Fired 68 | 9 39 20 Largest 2 | 2 2 2 Hottest 90 | 90 63 60 Shots Fired 133 | 18 75 40 Gun 103 | 18 66 19 Cannon 27 | . 9 18 Launcher 3 | . . 3 Special . | . . . Kinetic 91 | . 54 37 Thermal 9 | 9 . . Explosive 3 | . . 3 Electromagnetic 30 | 9 21 . Robot Hit Streak 9 | 4 9 4 Robot Miss Streak 5 | 4 2 5 Penetration Max . | . . . Secondary Targets . | . . . Shots Hit Robots 75 | 10 47 18 Core Hits 42 | 4 23 15 Critical Kills 1 | . . 1 Critical Parts Destroyed . | . . . Critical Strikes 1 | . . 1 Destroy 1 | . . 1 Melee Attacks . | . . . Impact . | . . . Slashing . | . . . Piercing . | . . . Sneak Attacks . | . . . Combat Hostiles . | . . . Follow-up Attacks . | . . . Damage Inflicted 1698 | 144 1160 394 Guns 948 | 144 648 156 Cannons 230 | . 89 141 Explosions 520 | . 423 97 Melee . | . . . Ramming . | . . . Kinetic 818 | . 521 297 Thermal 485 | 62 423 . Explosive 97 | . . 97 Electromagnetic 298 | 82 216 . Impact . | . . . Slashing . | . . . Piercing . | . . . Highest Corruption . | . . . Average Corruption . | . . . Corruption Purged . | . . . Corruption Blocked . | . . . Overload Shots . | . . . Overflow Damage 56 | . 49 7 Projectiles 7 | . . 7 Explosions 49 | . 49 . Melee . | . . . Knockbacks 3 | . 1 2 Impact . | . . . Kinetic 3 | . 1 2 Secondary . | . . . Self-Inflicted Damage . | . . . Shots . | . . . Rammed . | . . . Targets Rammed . | . . . Kicked . | . . . Crushed . | . . . Highest Temperature 162 | 162 87 12 Average Temperature 34 | 62 24 7 Received Heat Transfer 252 | . 204 48 Siege Activations . | . . . Martial Activations . | . . . Shielding Activations . | . . . Robots Disrupted . | . . . Combat Hostiles . | . . . Robots Corrupted . | . . . Combat Hostiles . | . . . Parts Fried . | . . . Impact Corruptions . | . . . Robots Melted . | . . . Combat Hostiles . | . . . Parts Melted 1 | . 1 . Heat Transferred 635 | 185 450 . Parts Sabotaged . | . . . Parts Stolen . | . . . Parts Stripped . | . . . Power Chain Reactions 1 | . 1 . Alert | -11 -10 -10 ------- Run | Yrd Mat Min Maximum Alert Level 1 | . 1 . Low Security (%) 99 | 100 98 100 Level 1 . | . 1 . Level 2 . | . . . Level 3 . | . . . Level 4 . | . . . Level 5 . | . . . High Security . | . . . Max Security . | . . . Peak Influence 209 | 5 209 136 Initial 66 | . . 66 Average 91 | . 107 103 Influence Increases 570 | 15 417 138 Destroy 0b10 Robot/C 300 | . 200 100 Destroy 0b10 Robot/NC 65 | 15 40 10 Destroy Leader 74 | . 54 20 Successful Hack 18 | . 18 . Disable Machine 45 | . 45 . Destroy Structure 23 | . 15 8 Partial Spotted 15 | . 15 . Lose Combat Pursuer 30 | . 30 . Influence Decreases 526 | 15 246 265 Entered New Map 105 | . . 105 Time Decay 331 | 15 236 80 Lost Part 90 | . 10 80 Squads Dispatched 3 | . 3 . Investigation 2 | . 2 . Extermination . | . . . Reinforcement 1 | . 1 . Assault . | . . . Garrison . | . . . Intercept . | . . . Searches Triggered . | . . . Construction Impeded . | . . . Haulers Reinforced . | . . . Active Scanning Responses . | . . . Cargo Convoy Interrupts . | . . . Stealth | -11 -10 -10 --------- Run | Yrd Mat Min Distress Signals 1 | . 1 . Communications Jammed . | . . . Distress Signals . | . . . Times Spotted 31 | . 15 16 Peak Tracking Total 13 | . 5 13 Tactical Retreats 1 | . 1 . Traps | -11 -10 -10 ------- Run | Yrd Mat Min Traps Triggered . | . . . Indirectly . | . . . Trap Hack Attempts . | . . . Triggered . | . . . Disarmed . | . . . Reprogrammed . | . . . Reused . | . . . Traps Extracted . | . . . Installed . | . . . Triggered . | . . . Machines | -11 -10 -10 ---------- Run | Yrd Mat Min Machines Disabled 3 | . 3 . Max in Single Turn 3 | . 3 . Machines Repaired . | . . . Machines Dismantled . | . . . Machines Sabotaged . | . . . Overloaded Fab Kills . | . . . Hacking | -11 -10 -10 --------- Run | Yrd Mat Min Machines Accessed 5 | . 5 . Terminals 5 | . 5 . Fabricators . | . . . Repair Stations . | . . . Recycling Units . | . . . Scanalyzers . | . . . Garrison Access . | . . . Total Hacks 18 | . 18 . Successful 7 | . 7 . Failed 11 | . 11 . Catastrophic 2 | . 2 . Database Lockouts . | . . . Manual 16 | . 16 . Terminals 18 | . 18 . Fabricators . | . . . Repair Stations . | . . . Recycling Units . | . . . Scanalyzers . | . . . Garrison Access . | . . . Terminal Hacks 4 | . 4 . Prototype ID Bank 1 | . 1 . Locate Traps 2 | . 2 . Recall Investigation 1 | . 1 . Fabricator Hacks . | . . . Repair Station Hacks . | . . . Recycling Unit Hacks . | . . . Scanalyzer . | . . . Garrison Access Hacks . | . . . Unauthorized Hacks 3 | . 3 . Terminals 3 | . 3 . Botnet 3 | . 3 . Fabricators . | . . . Repair Stations . | . . . Recycling Units . | . . . Scanalyzers . | . . . Garrison Access . | . . . Data Cores Recovered . | . . . Used . | . . . Hacking Detections 5 | . 5 . Full Trace Events 3 | . 3 . Feedback Events . | . . . Feedback Blocked . | . . . Robot Schematics Acquired . | . . . Robots Built . | . . . Authchips . | . . . Time . | . . . Total Robot Build Rating . | . . . Part Schematics Acquired . | . . . Parts Built . | . . . Authchips . | . . . Time . | . . . Total Part Build Rating . | . . . Part Studies Acquired . | . . . Parts Repaired . | . . . Time . | . . . Parts Recycled . | . . . Recycled Matter . | . . . Retrieved Matter . | . . . Retrieved Components . | . . . Parts Scanalyzed . | . . . Part Schematics Acquired . | . . . Parts Damaged . | . . . Bothacking | -11 -10 -10 ------------ Run | Yrd Mat Min Used RIF Installer . | . . . Robots Hacked . | . . . Non-combat . | . . . Combat . | . . . Robot Hacks Applied . | . . . Relay Couplers Released . | . . . Fabnet Peak Effective % . | . . . Robots Rewired . | . . . Allies Hacked . | . . . Hacks Repelled . | . . . Allies | -11 -10 -10 -------- Run | Yrd Mat Min Total Allies . | . . . Largest Group . | . . . Highest-Rated Group . | . . . Highest-Rated Ally . | . . . Total Orders . | . . . Ally Attacks . | . . . Total Damage . | . . . Kills . | . . . Allies Corrupted . | . . . Allies Melted . | . . . Intel | -11 -10 -10 ------- Run | Yrd Mat Min Active Infowar (turns) 817 | 34 625 158 Optics 741 | . 583 158 Seismic 76 | 34 42 . Robot Analysis Total . | . . . Derelict Logs Recovered . | . . . Drone Launches . | . . . Drone Recoveries . | . . . Exploration | -11 -10 -10 ------------- Run | Yrd Mat Min Turns Passed 928 | 129 625 174 Spaces Moved 441 | 52 291 98 Core 52 | 20 . 32 Treads 356 | 32 291 33 Legs . | . . . Wheels 33 | . . 33 Hover . | . . . Flight . | . . . Fastest Speed 50 | 50 160 50 Average Speed 147 | 163 160 103 Slowest Speed 200 | 200 160 160 Overloaded Moves . | . . . Propulsion Burnouts . | . . . Robots Hopped . | . . . Potential Cave-ins . | . . . Cave-ins Triggered . | . . . Exploration Rate (%) 30 | 4 67 21 Regions Visited 2 Branch Regions 1 Pre-discovered Areas . | . . . Known Exits Taken . | . . . Unknown Exits Taken 2 | 1 1 . Scrap Searched 1 | . . 1 Spaces Dug . | . . . Terrain Destroyed 35 | . 15 20 Melee . | . . . Projectile . | . . . AOE 35 | . 15 20 Terrain Rammed . | . . . Walls Destroyed . | . . . Machines Disabled . | . . . Actions | -11 -10 -10 --------- Run | Yrd Mat Min Total 584 | 75 380 129 Wait 27 | . 25 2 Move 439 | 51 290 98 Hop . | . . . Pick Up 21 | 8 11 2 Fast Attach 8 | 6 . 2 Attach 4 | 1 1 2 Detach . | . . . Swap 5 | . 4 1 Drop 12 | . 10 2 Fire 68 | 9 39 20 Melee . | . . . Ram . | . . . Kick . | . . . Crush . | . . . Escape Stasis . | . . . Rewire . | . . . Trap . | . . . Miscellaneous . | . . . Route ------- -11/Scrapyard -10/Materials (discovered 2 exits: [*Mat] / [*Min]) -10/Mines History --------- Turn | Location | Event 26 | -11/Scrapyard | Discovered new exit (range 15) 130 | -11/Scrapyard | Entered Materials 308 | -10/Materials | Build established: Mutant 482 | -10/Materials | Discovered new exit (range 11) 571 | -10/Materials | Discovered new exit (range 14) 755 | -10/Materials | Entered Mines 884 | -10/Mines | Assembled infested the area 889 | -10/Mines | Assisted by a Guerilla fighting off Assembled 909 | -10/Mines | Core integrity fell below 50% 913 | -10/Mines | Core integrity fell below 20% 913 | -10/Mines | Released all parts (3) 929 | -10/Mines | Destroyed by D-53 Grenadier with Mini Grenade Launcher Last Messages --------------- 00907_ R-06 Scavenger collects Tractor Beam. 00908_ The unstable cave ceiling collapses. 00908_ Grenade Launcher destroyed. 00908_ Com. Wheel destroyed. 00910_ Hvy. Assault Rifle destroyed. 00910_ Lgt. Nuclear Core destroyed. 00913_ The unstable cave ceiling collapses. 00913_ Released Visual Processing Unit. 00913_ Released Sml. Storage Unit. 00913_ Released Hvy. Assault Rifle. [Achievement: Live, Flee, And Rebuild] 00915_ The unstable cave ceiling collapses. 00922_ Searching scrap... 00922_ Found Lrg. Battery. 00922_ Found Sml. Matter Pod. 00922_ Found Hcp. Storage Unit. 00922_ Found 62 Matter. 00922_ Found 42 Matter. 00923_ Acquired 42 matter. 00927_ Acquired 5 matter. Map ----- +----------------------------------------------------+ | ?## #???????????????????????????????????? | | ? ##??????????????????????????????????? | | ? ??????????????????????????????????? | | ? ???????????????????????????????????? | | ? ???????????????????????????????????? | | ?? ????????????????????????????????????? | | ?? ????????????????????????????????????? | | ?? #????????????????????????????????????? | | ??# #????????????????????????????????????? | | ??# #????????????????????????????????????? | | ?## #????????????????????????????????????? | | ## * ##???????????????????????????????????? | | # % #???????????#####???????????????????? | | # #??????????## ##??????????????????? | | #! % #?????????## ##?????????????????? | | ##% ##???????## #?????????????????? | | ##[= ??????# #?????????????????? | | = ??#### #??????????????????? | | !% % ## #???????????????????? | | ## # # ## #???????????????????? | | ?## # #???????????????????? | | ??## * # #???????????????????? | | ???# [! # #???????????????????? | | ???## # # ####????????????????? | | ????## #d# ##???????????????? | | ?????### ## d @######??????????? | | ???????#### # ## !% !#??????????? | | ??????????########## #####!#??????????? | | ???????????????????# ###???# #??????????? | | ??????????????????# ##?????# ## ## "#???? | | ?????????????????# #??????# #??? | | ?????????????????# #??????# #?? | | ?????????????????## ##??????####### #?? | | ??????????????????###????????????????? #?? | | ??????????????????????????????????????????? | | ??????????????????????????????????????????? | | ??????????????????????????????????????????? | | ??????????????????????????????????????????? | | ??????????????????????????????????????????? | | ??????????????????????????????????????????? | | ??????????????????????????????????????????? | | ??????????????????????????????????????????? | | ??????????????????????????????????????????? | | ??????????????????????????????????????????? | | ??????????????????????????????????????????? | | ??????????????????????????????????????????? | | ??????????????????????????????????????????? | | ??????????????????????????????????????????? | | ??????????????????????????????????????????? | | ??????????????????????????????????????????? | +----------------------------------------------------+ Best States ------------- Heat Dissipation 25 Energy Generation 14 Energy Capacity 250 Matter Stores 300 Matter Capacity 300 Sight Range 18 Terrain Scan Density 10 Evasion (%) 50 Recoil Reduction 2 Item Schematics ----------------- None Robot Schematics ------------------ None Fabricated ------------ Nothing Repaired ---------- Nothing Studied --------- None Alien Tech Used ----------------- None Achievements -------------- Live, Flee, And Rebuild Challenges ------------ None Game ------ Seed AblativeReactiveVibroblade Manual? 0 Play Time 00:12:15 Cumulative 54.1 hours Start 2025.10.24 @ 14:57:13 End 2025.10.24 @ 15:06:58 Sessions 1 Manual Loads 0 Difficulty Rogue Special Mode None Game No. 58 Rogue 58 Adventurer 0 Explorer 0 Win Type - Total 0 Types 0/0/0/0/0/0/0/0/0/0 Lore% 28 Gallery% 39 Achievement% 24 Wizard Run 0 Options --------- Layout 1 ASCII 0 Keyboard 1 Movement Numpad Keybinds 0 Fullscreen 1 Font 24/Smallcaps Map View 50x35 Zoom Use 0% Tactical HUD 1 Map Filters NONE Filters NONE Steam 1 RUN: def7edee-dce9-4603-829e-cf18af984558